[Event "Budapest Spring Festival 2019"]
[Site "Budapest"]
[Date "2019.04.15"]
[Round "7.20"]
[White "Mehar, Chinna Reddy C.H."]
[Black "Popovic, Dusan"]
[Result "1/2-1/2"]
[ECO "C41"]
[WhiteElo "2348"]
[BlackElo "2503"]
[Annotator "ChessBase"]
[PlyCount "32"]
[EventDate "2019.04.09"]
[EventType "swiss"]
[EventCountry "HUN"]
[SourceTitle "playchess.com"]
[Source "ChessBase"]
[SourceQuality "1"]
[TimeControl "40/5400+30:1800+30"]

1. e4 {[%emt 0:00:50]} e5 {[%emt 0:00:12]} 2. Nf3 {[%emt 0:00:11]} d6 {[%emt 0:00:06]} 3. d4 {[%emt 0:00:46]} exd4 {[%emt 0:00:12]} 4. Nxd4 {[%emt 0:00:08]} Nf6 {[%emt 0:00:04]} 5. Nc3 {[%emt 0:00:16]} Be7 {[%emt 0:00:05]} 6. Bf4 {[%emt 0:01:13]} O-O {[%emt 0:01:04]} 7. Qd2 {[%emt 0:00:39]} Nc6 {[%emt 0:01:51]} 8. O-O-O {[%emt 0:01:16]} Nxd4 {[%emt 0:01:27]} 9. Qxd4 {[%emt 0:00:11]} Re8 {[%emt 0:00:02]} 10. f3 {[%emt 0:01:07]} a6 {[%emt 0:00:11]} 11. Qf2 {[%emt 0:09:35]} Bd7 {[%emt 0:06:40]} 12. g4 {[%emt 0:06:30]} b5 {[%emt 0:02:42]} 13. h4 {[%emt 0:00:46]} b4 {[%emt 0:01:44]} 14. Ne2 {[%emt 0:03:26]} c5 {[%emt 0:10:03]} 15. g5 {[%emt 0:07:02]} Nh5 {[%emt 0:01:21]} 16. Bxd6 {[%emt 0:00:26]} Bxd6 {[%emt 0:20:36]} 1/2-1/2

[Event "Budapest Spring Festival 2019"]
[Site "Budapest"]
[Date "2019.04.15"]
[Round "7.24"]
[White "Ankit, R. Rajpara"]
[Black "Bayramov, Zaur"]
[Result "1/2-1/2"]
[ECO "A61"]
[WhiteElo "2462"]
[BlackElo "2301"]
[Annotator "ChessBase"]
[PlyCount "39"]
[EventDate "2019.04.09"]
[EventType "swiss"]
[EventCountry "HUN"]
[SourceTitle "playchess.com"]
[Source "ChessBase"]
[SourceQuality "1"]
[TimeControl "40/5400+30:1800+30"]

1. d4 {[%emt 0:01:40]} Nf6 {[%emt 0:00:12]} 2. c4 {[%emt 0:00:13]} c5 {[%emt 0:00:07]} 3. d5 {[%emt 0:00:06]} e6 {[%emt 0:00:14]} 4. Nc3 {[%emt 0:00:19]} exd5 {[%emt 0:00:18]} 5. cxd5 {[%emt 0:00:07]} d6 {[%emt 0:00:13]} 6. Nf3 {[%emt 0:00:13]} g6 {[%emt 0:01:11]} 7. Bf4 {[%emt 0:00:21]} a6 {[%emt 0:01:49]} 8. a4 {[%emt 0:00:27]} Bg7 {[%emt 0:01:28]} 9. h3 {[%emt 0:00:24]} O-O {[%emt 0:02:55]} 10. e3 {[%emt 0:00:49]} Nh5 {[%emt 0:07:42]} 11. Bh2 {[%emt 0:01:14]} f5 {[%emt 0:00:34]} 12. Bd3 {[%emt 0:08:43]} f4 {[%emt 0:05:08]} 13. O-O {[%emt 0:01:11]} Nd7 {[%emt 0:04:45]} 14. Qd2 {[%emt 0:07:35]} Ne5 {[%emt 0:30:09]} 15. Be2 {[%emt 0:03:37]} fxe3 {[%emt 0:02:05]} 16. fxe3 {[%emt 0:02:59]} Nxf3+ {[%emt 0:00:37]} 17. Bxf3 {[%emt 0:02:41]} Nf6 {[%emt 0:00:31]} 18. e4 {[%emt 0:06:59]} Re8 {[%emt 0:02:52]} 19. Rae1 {[%emt 0:15:25]} Nd7 {[%emt 0:01:28]} 20. Bxd6 {[%emt 0:08:26]} 1/2-1/2

[Event "Budapest Spring Festival 2019"]
[Site "Budapest"]
[Date "2019.04.15"]
[Round "7.26"]
[White "Song, Julien"]
[Black "Kayonde, Andrew"]
[Result "1/2-1/2"]
[ECO "B10"]
[WhiteElo "2310"]
[BlackElo "2394"]
[Annotator "NA"]
[PlyCount "48"]
[EventDate "2019.04.09"]
[EventType "swiss"]
[EventCountry "HUN"]
[SourceTitle "playchess.com"]
[Source "ChessBase"]
[SourceQuality "1"]
[TimeControl "40/5400+30:1800+30"]

1. e4 {[%emt 0:03:45]} c6 {[%emt 0:00:11]} 2. d3 {[%emt 0:00:04]} d5 {[%emt 0:00:21]} 3. Qe2 {[%emt 0:00:06]} dxe4 {[%emt 0:12:58]} 4. dxe4 {[%emt 0:00:37]} e5 {[%emt 0:00:09]} 5. Nf3 {[%emt 0:01:16]} Nf6 {[%emt 0:01:01]} 6. Nbd2 {[%emt 0:03:40]} Bd6 {[%emt 0:01:33]} 7. Nc4 {[%emt 0:09:13]} Bc7 {[%emt 0:05:07]} 8. Bd2 {[%emt 0:28:19]} Qe7 {[%emt 0:00:54]} 9. Nh4 {[%emt 0:02:17]} Bg4 {[%emt 0:05:10]} 10. f3 {[%emt 0:03:45]} Be6 {[%emt 0:00:09]} 11. Nf5 {[%emt 0:01:51]} Bxf5 {[%emt 0:00:32]} 12. exf5 {[%emt 0:00:06]} Nbd7 {[%emt 0:00:43]} 13. O-O-O {[%emt 0:01:20]} Nd5 {[%emt 0:03:42]} 14. Kb1 {[%emt 0:01:54]} O-O-O {[%emt 0:09:15]} 15. g3 {[%emt 0:11:42]} Rhe8 {[%emt 0:02:53]} 16. Bg2 {[%emt 0:00:36]} Qc5 {[%emt 0:01:06]} 17. Rhe1 {[%emt 0:00:50]} N7b6 {[%emt 0:01:24]} 18. Nxb6+ {[%emt 0:10:55]} Nxb6 {[%emt 0:05:43]} 19. Be3 {[%emt 0:01:27]} Qb4 {[%emt 0:01:22]} 20. a3 {[%emt 0:00:53]} Qa4 {[%emt 0:00:15]} 21. Bxb6 {[%emt 0:02:20]} axb6 {[%emt 0:02:08]} 22. Qe4 {[%emt 0:01:36]} Qxe4 {[%emt 0:01:07]} 23. fxe4 {[%emt 0:00:18]} b5 {[%emt 0:00:10]} 24. Bf3 {[%emt 0:00:41]} Bb6 {[%emt 0:00:24]} 1/2-1/2

[Event "Budapest Spring Festival 2019"]
[Site "Budapest"]
[Date "2019.04.15"]
[Round "7.27"]
[White "Daggupati, Balaji"]
[Black "Nguyen, Van Thanh"]
[Result "1-0"]
[ECO "B90"]
[WhiteElo "2326"]
[BlackElo "2391"]
[Annotator "NA"]
[PlyCount "33"]
[EventDate "2019.04.09"]
[EventType "swiss"]
[EventCountry "HUN"]
[SourceTitle "playchess.com"]
[Source "ChessBase"]
[SourceQuality "1"]
[TimeControl "40/5400+30:1800+30"]

1. e4 {[%emt 0:00:04]} c5 {[%emt 0:00:11]} 2. Nf3 {[%emt 0:00:06]} d6 {[%emt 0:00:10]} 3. d4 {[%emt 0:00:06]} cxd4 {[%emt 0:00:09]} 4. Nxd4 {[%emt 0:00:06]} Nf6 {[%emt 0:00:11]} 5. Nc3 {[%emt 0:00:05]} a6 {[%emt 0:00:11]} 6. Qf3 {[%emt 0:00:06]} g6 {[%emt 0:01:30]} 7. h3 {[%emt 0:00:36]} Bg7 {[%emt 0:00:13]} 8. Be3 {[%emt 0:01:36]} O-O {[%emt 0:00:51]} 9. g4 {[%emt 0:00:51]} Nc6 {[%emt 0:02:14]} 10. O-O-O {[%emt 0:00:43]} Bd7 {[%emt 0:05:02]} 11. g5 {[%emt 0:06:33]} Nh5 {[%emt 0:00:15]} 12. Nd5 {[%emt 0:05:38]} Rc8 {[%emt 0:02:24]} 13. Nf5 {[%emt 0:16:11]} gxf5 {[%emt 0:08:23]} 14. Qxh5 {[%emt 0:01:24]} Qa5 {[%emt 0:14:37]} 15. Bc4 {[%emt 0:02:27]} Nb4 {[%emt 0:07:57]} 16. Nxe7+ {[%emt 0:02:40]} Kh8 {[%emt 0:00:09]} 17. g6 {[%emt 0:00:28]} 1-0

[Event "Budapest Spring Festival 2019"]
[Site "Budapest"]
[Date "2019.04.15"]
[Round "7.32"]
[White "Vetoshko, Volodymyr"]
[Black "Wong, Jianwen"]
[Result "1-0"]
[ECO "B33"]
[WhiteElo "2510"]
[BlackElo "2185"]
[Annotator "ChessBase"]
[PlyCount "61"]
[EventDate "2019.04.09"]
[EventType "swiss"]
[EventCountry "HUN"]
[SourceTitle "playchess.com"]
[Source "ChessBase"]
[SourceQuality "1"]
[TimeControl "40/5400+30:1800+30"]

1. e4 {[%emt 0:01:25]} c5 {[%emt 0:00:06]} 2. Nf3 {[%emt 0:00:14]} Nc6 {[%emt 0:00:05]} 3. d4 {[%emt 0:00:17]} cxd4 {[%emt 0:00:05]} 4. Nxd4 {[%emt 0:00:04]} Nf6 {[%emt 0:00:05]} 5. Nc3 {[%emt 0:00:04]} e5 {[%emt 0:00:04]} 6. Ndb5 {[%emt 0:00:05]} d6 {[%emt 0:00:05]} 7. Bg5 {[%emt 0:00:05]} a6 {[%emt 0:00:05]} 8. Na3 {[%emt 0:00:04]} b5 {[%emt 0:00:04]} 9. Nd5 {[%emt 0:00:05]} Be7 {[%emt 0:00:04]} 10. Bxf6 {[%emt 0:00:06]} Bxf6 {[%emt 0:00:05]} 11. c3 {[%emt 0:00:06]} Ne7 {[%emt 0:00:05]} 12. Nxf6+ {[%emt 0:02:49]} gxf6 {[%emt 0:00:06]} 13. Bd3 {[%emt 0:01:02]} Bb7 {[%emt 0:00:52]} 14. Nc2 {[%emt 0:01:06]} d5 {[%emt 0:00:20]} 15. Qe2 {[%emt 0:00:46]} Qb6 {[%emt 0:03:43]} 16. O-O-O {[%emt 0:06:37]} O-O-O {[%emt 0:01:03]} 17. f3 {[%emt 0:00:55]} Kb8 {[%emt 0:05:04]} 18. Kb1 {[%emt 0:00:11]} h5 {[%emt 0:16:34]} 19. Rhf1 {[%emt 0:12:45]} Ng6 {[%emt 0:08:47]} 20. g3 {[%emt 0:01:20]} h4 {[%emt 0:01:21]} 21. exd5 {[%emt 0:12:30]} Bxd5 {[%emt 0:06:14]} 22. c4 {[%emt 0:03:08]} bxc4 {[%emt 0:21:15]} 23. Bxc4 {[%emt 0:00:16]} Bxc4 {[%emt 0:02:53]} 24. Qxc4 {[%emt 0:01:22]} hxg3 {[%emt 0:02:19]} 25. hxg3 {[%emt 0:00:16]} Qe6 {[%emt 0:03:51]} 26. Qa4 {[%emt 0:08:24]} Ka7 {[%emt 0:03:47]} 27. Nb4 {[%emt 0:06:15]} Ne7 {[%emt 0:01:19]} 28. a3 {[%emt 0:13:01]} Qb6 {[%emt 0:10:40]} 29. Rd7+ {[%emt 0:02:06]} Rxd7 {[%emt 0:00:18]} 30. Qxd7+ {[%emt 0:00:02]} Qb7 {[%emt 0:00:07]} 31. Qxe7 1-0

[Event "Budapest Spring Festival 2019"]
[Site "Budapest"]
[Date "2019.04.15"]
[Round "7.35"]
[White "Popovics, Adam"]
[Black "Louis, Thibault"]
[Result "1/2-1/2"]
[ECO "A22"]
[WhiteElo "2375"]
[BlackElo "2251"]
[Annotator "NA"]
[PlyCount "49"]
[EventDate "2019.04.09"]
[EventType "swiss"]
[EventCountry "HUN"]
[SourceTitle "playchess.com"]
[Source "ChessBase"]
[SourceQuality "1"]
[TimeControl "40/5400+30:1800+30"]

1. c4 {[%emt 0:00:03]} e5 {[%emt 0:05:04]} 2. Nc3 {[%emt 0:00:05]} Nf6 {[%emt 0:00:09]} 3. g3 {[%emt 0:00:06]} c6 {[%emt 0:00:06]} 4. Nf3 {[%emt 0:00:06]} e4 {[%emt 0:01:03]} 5. Nd4 {[%emt 0:00:05]} d5 {[%emt 0:06:51]} 6. cxd5 {[%emt 0:00:07]} cxd5 {[%emt 0:00:23]} 7. d3 {[%emt 0:00:48]} Bc5 {[%emt 0:05:29]} 8. Nb3 {[%emt 0:03:04]} Bb4 {[%emt 0:02:08]} 9. a3 {[%emt 0:07:58]} Bxc3+ {[%emt 0:01:31]} 10. bxc3 {[%emt 0:00:05]} exd3 {[%emt 0:00:58]} 11. Qxd3 {[%emt 0:00:51]} O-O {[%emt 0:00:21]} 12. Bg2 {[%emt 0:00:16]} Nc6 {[%emt 0:00:09]} 13. O-O {[%emt 0:03:50]} Re8 {[%emt 0:02:03]} 14. Bg5 {[%emt 0:09:12]} Bg4 {[%emt 0:03:41]} 15. Rfe1 {[%emt 0:04:28]} h6 {[%emt 0:08:31]} 16. Bf4 {[%emt 0:02:49]} Qe7 {[%emt 0:03:42]} 17. Nd4 {[%emt 0:01:00]} Rac8 {[%emt 0:03:47]} 18. h3 {[%emt 0:07:02]} Bd7 {[%emt 0:02:05]} 19. Nxc6 {[%emt 0:20:36]} Bxc6 {[%emt 0:01:37]} 20. Qd4 {[%emt 0:00:23]} a6 {[%emt 0:05:19]} 21. a4 {[%emt 0:02:05]} Ne4 {[%emt 0:00:25]} 22. a5 {[%emt 0:08:39]} Nc5 {[%emt 0:06:24]} 23. Qb4 {[%emt 0:00:48]} Ne4 {[%emt 0:00:57]} 24. Qd4 {[%emt 0:04:52]} Nc5 {[%emt 0:00:08]} 25. Qb4 {[%emt 0:00:23]} 1/2-1/2

[Event "Budapest Spring Festival 2019"]
[Site "Budapest"]
[Date "2019.04.15"]
[Round "7.38"]
[White "Terbe, Julianna"]
[Black "Kulkarni, Rakesh"]
[Result "1/2-1/2"]
[ECO "A05"]
[WhiteElo "2265"]
[BlackElo "2334"]
[Annotator "NA"]
[PlyCount "61"]
[EventDate "2019.04.09"]
[EventType "swiss"]
[EventCountry "HUN"]
[SourceTitle "playchess.com"]
[Source "ChessBase"]
[SourceQuality "1"]
[TimeControl "40/5400+30:1800+30"]

1. Nf3 {[%emt 0:00:03]} Nf6 {[%emt 0:03:32]} 2. g3 {[%emt 0:00:04]} d5 {[%emt 0:00:12]} 3. d4 {[%emt 0:00:07]} Bf5 {[%emt 0:01:56]} 4. c4 {[%emt 0:00:12]} c6 {[%emt 0:02:01]} 5. Nc3 {[%emt 0:00:58]} dxc4 {[%emt 0:01:32]} 6. Ne5 {[%emt 0:01:03]} e6 {[%emt 0:02:12]} 7. Nxc4 {[%emt 0:06:32]} Nbd7 {[%emt 0:17:12]} 8. Bg2 {[%emt 0:03:19]} Nb6 {[%emt 0:02:57]} 9. Ne5 {[%emt 0:05:57]} Nbd5 {[%emt 0:02:24]} 10. O-O {[%emt 0:02:10]} Bd6 {[%emt 0:03:18]} 11. Qb3 {[%emt 0:10:11]} Qc7 {[%emt 0:05:56]} 12. Nc4 {[%emt 0:07:13]} Be7 {[%emt 0:00:28]} 13. Re1 {[%emt 0:00:42]} Nxc3 {[%emt 0:10:32]} 14. bxc3 {[%emt 0:00:37]} Be4 {[%emt 0:00:05]} 15. Bf4 {[%emt 0:01:51]} Qc8 {[%emt 0:00:07]} 16. Bxe4 {[%emt 0:05:27]} Nxe4 {[%emt 0:00:11]} 17. f3 {[%emt 0:00:06]} Nf6 {[%emt 0:02:48]} 18. Nd6+ {[%emt 0:00:16]} Bxd6 {[%emt 0:00:06]} 19. Bxd6 {[%emt 0:00:03]} Qd7 {[%emt 0:01:30]} 20. Qa3 {[%emt 0:03:34]} Nd5 {[%emt 0:04:16]} 21. c4 {[%emt 0:06:32]} Ne3 {[%emt 0:04:33]} 22. Qxe3 {[%emt 0:05:20]} Qxd6 {[%emt 0:00:07]} 23. Rab1 {[%emt 0:00:59]} Qd7 {[%emt 0:01:42]} 24. d5 {[%emt 0:05:23]} cxd5 {[%emt 0:00:38]} 25. cxd5 {[%emt 0:00:04]} Qxd5 {[%emt 0:00:26]} 26. Red1 {[%emt 0:01:36]} Qa5 {[%emt 0:08:35]} 27. Rxb7 {[%emt 0:04:40]} O-O {[%emt 0:00:08]} 28. Rdd7 {[%emt 0:01:08]} Qxa2 {[%emt 0:00:34]} 29. Rxa7 {[%emt 0:01:14]} Rxa7 {[%emt 0:00:06]} 30. Rxa7 {[%emt 0:00:07]} Qd5 {[%emt 0:00:11]} 31. Kg2 {[%emt 0:02:16]} 1/2-1/2

[Event "Budapest Spring Festival 2019"]
[Site "Budapest"]
[Date "2019.04.15"]
[Round "7.40"]
[White "Bodi, Tibor"]
[Black "Skomorokhin, Roman"]
[Result "1-0"]
[ECO "A05"]
[WhiteElo "2240"]
[BlackElo "2318"]
[Annotator "NA RC"]
[PlyCount "95"]
[EventDate "2019.04.09"]
[EventType "swiss"]
[EventCountry "HUN"]
[SourceTitle "playchess.com"]
[Source "ChessBase"]
[SourceQuality "1"]
[TimeControl "40/5400+30:1800+30"]

1. Nf3 {[%emt 0:00:07]} Nf6 {[%emt 0:03:48]} 2. b3 {[%emt 0:00:11]} c5 {[%emt 0:03:09]} 3. Bb2 {[%emt 0:00:06]} d6 {[%emt 0:02:37]} 4. e3 {[%emt 0:00:31]} e5 {[%emt 0:04:58]} 5. Bb5+ {[%emt 0:03:44]} Nbd7 {[%emt 0:06:41]} 6. O-O {[%emt 0:10:25]} a6 {[%emt 0:01:54]} 7. Be2 {[%emt 0:06:00]} Be7 {[%emt 0:00:30]} 8. d4 {[%emt 0:02:23]} cxd4 {[%emt 0:02:42]} 9. exd4 {[%emt 0:00:06]} e4 {[%emt 0:00:11]} 10. Nfd2 {[%emt 0:00:19]} d5 {[%emt 0:01:19]} 11. c4 {[%emt 0:00:19]} O-O {[%emt 0:01:38]} 12. Nc3 {[%emt 0:00:35]} Re8 {[%emt 0:01:17]} 13. Re1 {[%emt 0:02:22]} Bb4 {[%emt 0:02:37]} 14. Nf1 {[%emt 0:03:21]} Nf8 {[%emt 0:07:07]} 15. Ne3 {[%emt 0:03:05]} Be6 {[%emt 0:11:02]} 16. a3 {[%emt 0:01:18]} Bxc3 {[%emt 0:02:37]} 17. Bxc3 {[%emt 0:00:02]} Ng6 {[%emt 0:01:22]} 18. c5 {[%emt 0:00:58]} Nd7 {[%emt 0:10:31]} 19. g3 {[%emt 0:04:59]} f5 {[%emt 0:02:36]} 20. Ng2 {[%emt 0:24:56]} f4 {[%emt 0:06:13]} 21. gxf4 {[%emt 0:05:15]} Bh3 {[%emt 0:01:42]} 22. Bf1 {[%emt 0:13:56]} Bxg2 {[%emt 0:05:11]} 23. Bxg2 {[%emt 0:00:29]} Nxf4 {[%emt 0:01:37]} 24. Bd2 {[%emt 0:00:30]} Qg5 {[%emt 0:01:38]} 25. Bxf4 {[%emt 0:00:16]} Qxf4 {[%emt 0:00:05]} 26. Qc1 {[%emt 0:02:56]} Qf6 {[%emt 0:02:16]} 27. Qe3 {[%emt 0:00:19]} Nf8 {[%emt 0:00:20]} 28. f3 {[%emt 0:02:14]} Rad8 {[%emt 0:05:57]} 29. fxe4 {[%emt 0:00:32]} dxe4 {[%emt 0:00:05]} 30. Rad1 {[%emt 0:01:15]} Ne6 {[%emt 0:03:19]} 31. Qxe4 {[%emt 0:01:50]} Nf4 {[%emt 0:02:30]} 32. Qxe8+ {[%emt 0:02:33]} Rxe8 {[%emt 0:00:05]} 33. Rxe8+ {[%emt 0:00:03]} Kf7 {[%emt 0:00:03]} 34. Re4 {[%emt 0:00:48]} g5 {[%emt 0:01:27]} 35. Rde1 {[%emt 0:02:16]} Kg6 {[%emt 0:00:54]} 36. Re5 {[%emt 0:03:26]} Kh5 {[%emt 0:02:25]} 37. Bxb7 {[%emt 0:01:22]} Kh4 {[%emt 0:02:27]} 38. Bg2 {[%emt 0:00:49]} Qg6 {[%emt 0:01:04]} 39. R5e4 {[%emt 0:00:30]} Qf5 {[%emt 0:00:42]} 40. R1e3 {[%emt 0:00:00]} g4 {[%emt 0:00:00]} 41. Bf1 {[%emt 0:09:08]} Qf6 {[%emt 0:04:12]} 42. b4 {[%emt 0:08:18]} h5 {[%emt 0:07:57]} 43. c6 {[%emt 0:02:12]} Qd6 {[%emt 0:03:05]} 44. a4 {[%emt 0:01:27]} Nd5 {[%emt 0:06:07]} 45. Rh3+ {[%emt 0:04:24]} Kg5 {[%emt 0:00:07]} 46. Re5+ {[%emt 0:00:06]} Kf4 {[%emt 0:01:46]} 47. Rhxh5 {[%emt 0:00:14]} Ne3 {[%emt 0:01:11]} 48. Bg2 {[%emt 0:01:02]} 1-0

[Event "Budapest Spring Festival 2019"]
[Site "Budapest"]
[Date "2019.04.16"]
[Round "8.1"]
[White "Onischuk, Vladimir"]
[Black "Arjun Kalyan"]
[Result "1-0"]
[ECO "C94"]
[WhiteElo "2627"]
[BlackElo "2445"]
[Annotator "RC"]
[PlyCount "87"]
[EventDate "2019.04.09"]
[EventType "swiss"]
[EventCountry "HUN"]
[SourceTitle "playchess.com"]
[Source "ChessBase"]
[SourceQuality "1"]
[TimeControl "40/5400+30:1800+30"]

1. e4 {[%emt 0:00:09]} e5 {[%emt 0:00:06]} 2. Nf3 {[%emt 0:00:15]} Nc6 {[%emt 0:00:06]} 3. Bb5 {[%emt 0:00:09]} a6 {[%emt 0:00:09]} 4. Ba4 {[%emt 0:00:08]} Nf6 {[%emt 0:00:06]} 5. O-O {[%emt 0:00:15]} Be7 {[%emt 0:00:12]} 6. Re1 {[%emt 0:00:14]} b5 {[%emt 0:00:19]} 7. Bb3 {[%emt 0:00:08]} d6 {[%emt 0:00:09]} 8. c3 {[%emt 0:00:25]} O-O {[%emt 0:00:10]} 9. h3 {[%emt 0:00:12]} Nb8 {[%emt 0:00:13]} 10. d3 {[%emt 0:00:07]} Nbd7 {[%emt 0:00:59]} 11. Nbd2 {[%emt 0:00:18]} Bb7 {[%emt 0:00:42]} 12. Nf1 {[%emt 0:00:27]} Nc5 {[%emt 0:01:45]} 13. Bc2 {[%emt 0:00:35]} Re8 {[%emt 0:00:52]} 14. Ng3 {[%emt 0:03:22]} Bf8 {[%emt 0:01:13]} 15. Be3 {[%emt 0:07:18]} h6 {[%emt 0:18:59]} 16. Qe2 {[%emt 0:23:46]} Ncd7 {[%emt 0:06:01]} 17. Rad1 {[%emt 0:15:08]} d5 {[%emt 0:09:29]} 18. Nh4 {[%emt 0:14:05]} g6 {[%emt 0:13:51]} 19. Nf3 {[%emt 0:02:31]} c5 {[%emt 0:09:53]} 20. h4 {[%emt 0:04:20]} h5 {[%emt 0:01:31]} 21. Ng5 {[%emt 0:05:39]} Qc7 {[%emt 0:03:50]} 22. Qf3 {[%emt 0:04:54]} Bg7 {[%emt 0:00:37]} 23. exd5 {[%emt 0:01:46]} Bxd5 {[%emt 0:00:07]} 24. N3e4 {[%emt 0:00:03]} Re7 {[%emt 0:04:38]} 25. Bb3 {[%emt 0:06:29]} Rd8 {[%emt 0:01:53]} 26. c4 {[%emt 0:01:09]} bxc4 {[%emt 0:03:13]} 27. Bxc4 {[%emt 0:00:29]} Bxc4 {[%emt 0:01:54]} 28. dxc4 {[%emt 0:00:03]} Rb8 {[%emt 0:01:19]} 29. b3 {[%emt 0:08:09]} Ng4 {[%emt 0:01:21]} 30. Nd6 {[%emt 0:00:40]} Ndf6 {[%emt 0:02:58]} 31. Nde4 {[%emt 0:00:33]} Nd7 {[%emt 0:01:22]} 32. Ng3 {[%emt 0:01:08]} Bh6 {[%emt 0:03:43]} 33. Bc1 {[%emt 0:00:20]} Nb6 {[%emt 0:02:58]} 34. N3e4 {[%emt 0:00:56]} Bg7 {[%emt 0:00:37]} 35. Qg3 {[%emt 0:00:24]} f6 {[%emt 0:00:59]} 36. f3 {[%emt 0:00:21]} Nh6 {[%emt 0:00:47]} 37. Nh3 {[%emt 0:00:04]} Kh7 {[%emt 0:01:26]} 38. Bxh6 {[%emt 0:00:10]} Kxh6 {[%emt 0:00:01]} 39. Rd6 {[%emt 0:00:12]} Rf8 {[%emt 0:01:38]} 40. Red1 {[%emt 0:00:00]} Rd7 {[%emt 0:00:00]} 41. Nhg5 {[%emt 0:08:03]} Rxd6 {[%emt 0:05:50]} 42. Rxd6 {[%emt 0:00:26]} Nc8 {[%emt 0:02:13]} 43. Ne6 {[%emt 0:00:59]} Qe7 {[%emt 0:00:56]} 44. Nxf8 {[%emt 0:01:54]} 1-0

[Event "Budapest Spring Festival 2019"]
[Site "Budapest"]
[Date "2019.04.16"]
[Round "8.5"]
[White "Shyam, Sundar M."]
[Black "Erdos, Viktor"]
[Result "1/2-1/2"]
[ECO "C78"]
[WhiteElo "2519"]
[BlackElo "2610"]
[Annotator "RC"]
[PlyCount "40"]
[EventDate "2019.04.09"]
[EventType "swiss"]
[EventCountry "HUN"]
[SourceTitle "playchess.com"]
[Source "ChessBase"]
[SourceQuality "1"]
[TimeControl "40/5400+30:1800+30"]

1. e4 {[%emt 0:00:05]} e5 {[%emt 0:04:41]} 2. Nf3 {[%emt 0:00:08]} Nc6 {[%emt 0:00:06]} 3. Bb5 {[%emt 0:00:10]} a6 {[%emt 0:00:06]} 4. Ba4 {[%emt 0:00:03]} Nf6 {[%emt 0:00:07]} 5. O-O {[%emt 0:00:43]} b5 {[%emt 0:00:09]} 6. Bb3 {[%emt 0:00:05]} Bc5 {[%emt 0:00:04]} 7. c3 {[%emt 0:00:14]} d6 {[%emt 0:00:09]} 8. d4 {[%emt 0:03:42]} Bb6 {[%emt 0:00:13]} 9. Be3 {[%emt 0:00:05]} O-O {[%emt 0:01:26]} 10. Nbd2 {[%emt 0:00:03]} h6 {[%emt 0:00:07]} 11. Re1 {[%emt 0:00:03]} Bb7 {[%emt 0:07:47]} 12. d5 {[%emt 0:06:27]} Ne7 {[%emt 0:11:06]} 13. Bxb6 {[%emt 0:03:28]} cxb6 {[%emt 0:00:10]} 14. a4 {[%emt 0:00:06]} bxa4 {[%emt 0:00:40]} 15. Bxa4 {[%emt 0:00:33]} b5 {[%emt 0:31:54]} 16. Bc2 {[%emt 0:03:59]} a5 {[%emt 0:01:39]} 17. Bd3 {[%emt 0:04:22]} Qb6 {[%emt 0:02:10]} 18. Qe2 {[%emt 0:11:23]} Rfb8 {[%emt 0:00:22]} 19. Rec1 {[%emt 0:24:53]} Bc8 {[%emt 0:01:33]} 20. b4 {[%emt 0:02:33]} axb4 {[%emt 0:23:50]} 1/2-1/2

[Event "Budapest Spring Festival 2019"]
[Site "Budapest"]
[Date "2019.04.16"]
[Round "8.6"]
[White "Santos Latasa, Jaime"]
[Black "Krzyzanowski, Marcin"]
[Result "1-0"]
[ECO "A67"]
[WhiteElo "2585"]
[BlackElo "2509"]
[Annotator "ChessBase"]
[PlyCount "63"]
[EventDate "2019.04.09"]
[EventType "swiss"]
[EventCountry "HUN"]
[SourceTitle "playchess.com"]
[Source "ChessBase"]
[SourceQuality "1"]
[TimeControl "40/5400+30:1800+30"]

1. d4 {[%emt 0:00:03]} Nf6 {[%emt 0:00:07]} 2. c4 {[%emt 0:00:11]} c5 {[%emt 0:00:10]} 3. d5 {[%emt 0:00:07]} e6 {[%emt 0:00:05]} 4. Nc3 {[%emt 0:00:05]} exd5 {[%emt 0:00:10]} 5. cxd5 {[%emt 0:00:05]} d6 {[%emt 0:00:04]} 6. e4 {[%emt 0:00:07]} g6 {[%emt 0:00:13]} 7. f4 {[%emt 0:00:05]} Bg7 {[%emt 0:00:23]} 8. Bb5+ {[%emt 0:00:05]} Nfd7 {[%emt 0:00:02]} 9. Bd3 {[%emt 0:00:07]} a6 {[%emt 0:05:44]} 10. a4 {[%emt 0:00:36]} O-O {[%emt 0:03:44]} 11. Nf3 {[%emt 0:00:36]} Re8 {[%emt 0:00:50]} 12. O-O {[%emt 0:00:33]} Qc7 {[%emt 0:03:00]} 13. Bc2 {[%emt 0:04:36]} c4 {[%emt 0:05:05]} 14. Be3 {[%emt 0:00:31]} Nf8 {[%emt 0:03:37]} 15. Bd4 {[%emt 0:01:44]} f6 {[%emt 0:03:14]} 16. Nd2 {[%emt 0:17:11]} Nbd7 {[%emt 0:22:17]} 17. Qe2 {[%emt 0:00:25]} f5 {[%emt 0:00:54]} 18. Bxg7 {[%emt 0:01:00]} Kxg7 {[%emt 0:00:45]} 19. Qf2 {[%emt 0:00:46]} fxe4 {[%emt 0:13:26]} 20. Ncxe4 {[%emt 0:01:27]} Qb6 {[%emt 0:16:08]} 21. Nxc4 {[%emt 0:00:27]} Qxf2+ {[%emt 0:00:03]} 22. Rxf2 {[%emt 0:00:36]} Rd8 {[%emt 0:00:29]} 23. Nexd6 {[%emt 0:02:25]} Rb8 {[%emt 0:00:45]} 24. Rd2 {[%emt 0:03:59]} Nf6 {[%emt 0:01:11]} 25. a5 {[%emt 0:00:15]} Bd7 {[%emt 0:00:29]} 26. Re1 {[%emt 0:01:05]} Bb5 {[%emt 0:00:04]} 27. Re7+ {[%emt 0:00:47]} Kg8 {[%emt 0:00:03]} 28. Nxb5 {[%emt 0:02:04]} axb5 {[%emt 0:00:04]} 29. Nb6 {[%emt 0:01:01]} Rd6 {[%emt 0:00:46]} 30. Bd3 {[%emt 0:01:08]} b4 {[%emt 0:00:03]} 31. Bc4 {[%emt 0:01:31]} Kh8 {[%emt 0:00:40]} 32. Rde2 {[%emt 0:00:27]} 1-0